bitfinex-derivatives/quotes_SOLF0:USTF0_20251125
["timestamp","ask_amount","ask_price","bid_price","bid_amount"]
[1764081616395,0.05179253,135.45,135.43,0.05475703]
[1764081617408,6.70019253,135.45,135.43,0.05475703]
[1764081618703,0.05179253,135.45,135.38,3.13]
[1764081619495,0.05179253,135.45,135.37,62.0]
[1764081619496,103.426,135.44,135.37,62.0]
[1764081619698,0.0527676,135.42,135.39,0.0558173]
[1764081620110,0.0527676,135.42,135.39,3.1858173]
[1764081621912,6.7025676,135.42,135.39,0.0558173]
[1764081622106,0.0527676,135.42,135.39,0.0558173]
[1764081622806,0.0527676,135.42,135.39,3.1858173]
[1764081623313,6.648,135.46,135.4,3.13]
[1764081623820,6.6486,135.45,135.4,3.13]
[1764081624314,0.05615497,135.44,135.41,0.05500391]
[1764081624810,103.365,135.52,135.42,71.7796]
[1764081625008,103.3725,135.51,135.42,65.13]
[1764081625307,6.6466,135.49,135.42,65.13]
[1764081625705,0.05213624,135.47,135.44,0.04705922]
[1764081626419,6.6479,135.46,135.44,0.04705922]
[1764081626810,0.05213624,135.47,135.44,3.17705922]
[1764081627011,0.05213624,135.47,135.44,0.04705922]
[1764081627313,109.16720571,135.52,135.44,0.04705922]
[1764081627314,103.3418,135.55,135.44,3.17705922]
[1764081627611,103.3647,135.52,135.44,3.13]
[1764081628017,103.3743,135.51,135.44,3.13]
[1764081628216,0.04944718,135.49,135.46,0.05192781]
[1764081628516,103.44306223,135.49,135.46,0.05212704]
[1764081628707,6.6468,135.48,135.46,0.05212704]
[1764081629215,103.4071,135.47,135.41,3.13]
[1764081629417,103.4071,135.47,135.39,3.13]
[1764081629612,103.3911,135.49,135.39,3.13]
[1764081629613,103.3828,135.5,135.39,3.13]
[1764081629817,103.3957,135.48,135.39,3.13]
[1764081630008,0.05171658,135.45,135.42,0.05548753]
[1764081630410,0.05171658,135.45,135.42,3.18548753]
[1764081630810,6.6489,135.44,135.42,0.05548753]
[1764081632813,0.05171658,135.45,135.42,0.05548753]
[1764081633020,0.05171658,135.45,135.42,3.18548753]
[1764081633922,6.70001658,135.45,135.42,3.18548753]
[1764081634117,0.05171658,135.45,135.42,3.18548753]
[1764081634422,0.05171658,135.45,135.42,0.05548753]
[1764081634625,0.05171658,135.45,135.42,3.18548753]
[1764081634917,25.86,135.51,135.43,3.13]
[1764081635118,25.86,135.51,135.44,9.7784]
[1764081635321,103.3418,135.55,135.45,3.13]
[1764081635520,103.3422,135.55,135.45,3.13]
[1764081635921,129.179,135.58,135.45,3.13]
[1764081635922,0.04931849,135.51,135.5,3.13]
[1764081636120,0.05146836,135.52,135.5,3.13]
[1764081636325,0.04890442,135.52,135.5,3.18644353]
[1764081636519,103.3174,135.59,135.5,3.18644353]
[1764081636726,103.3191,135.58,135.5,3.13]
[1764081636920,25.86,135.62,135.52,3.13]
[1764081637129,103.2964,135.61,135.52,3.13]
[1764081637319,129.1512,135.62,135.52,3.13]
[1764081637629,129.1512,135.62,135.56,0.05509235]
[1764081637630,0.05603612,135.58,135.56,0.05509235]
[1764081638027,103.3294,135.57,135.48,3.13]
[1764081638326,103.3577,135.53,135.43,5.79950571]
[1764081638629,6.6456,135.51,135.45,3.13]
[1764081639033,0.00127538,135.49,135.48,3.13]
[1764081639233,103.3503,135.54,135.48,3.13]
[1764081639929,6.6451,135.52,135.48,3.13]
[1764081640132,0.05580553,135.51,135.49,0.05410537]
[1764081640932,6.70140553,135.51,135.49,0.05410537]
[1764081641131,110.07370553,135.51,135.49,0.05410537]
[1764081641431,6.70140553,135.51,135.49,0.05410537]
[1764081641624,0.05580553,135.51,135.49,0.05410537]
[1764081643124,103.3984,135.48,135.4,3.13]
[1764081643337,103.4116,135.46,135.4,3.13]
[1764081643640,6.649,135.44,135.4,3.13]
[1764081644130,103.4049,135.47,135.41,0.05626365]
[1764081644131,0.05006686,135.43,135.41,0.05626365]
[1764081646323,0.05006686,135.43,135.41,3.18626365]
[1764081646728,6.6476,135.47,135.41,3.18626365]
[1764081646941,6.6466,135.49,135.41,3.18626365]
[1764081647130,103.382,135.5,135.41,3.13]
[1764081647337,129.2277,135.52,135.41,3.13]
[1764081647636,103.3574,135.53,135.45,3.01]
[1764081647839,0.04718462,135.5,135.48,0.05473003]
[1764081648039,6.69308462,135.5,135.48,0.05473003]
[1764081648240,103.398,135.48,135.42,3.01]
[1764081648932,103.398,135.48,135.39,62.0]
[1764081649138,103.398,135.48,135.4,3.01]
[1764081649336,0.05002723,135.45,135.42,0.04679768]
[1764081651442,6.6489,135.44,135.42,0.04679768]
[1764081652034,0.05002723,135.45,135.42,3.05679768]
[1764081653347,0.05002723,135.45,135.42,0.04679768]
[1764081654345,6.6488,135.44,135.42,0.04679768]
[1764081657146,6.6508,135.4,135.37,25.86]
[1764081657654,103.4499,135.41,135.37,25.86]
[1764081658243,6.6513,135.39,135.38,0.04652253]
[1764081658439,25.86,135.47,135.38,3.02652253]
[1764081658638,6.86463381,135.52,135.4,2.98]
[1764081658841,103.3876,135.49,135.4,2.98]
[1764081659248,6.6489,135.44,135.37,2.98]
[1764081659447,103.419,135.45,135.37,2.98]
[1764081659648,0.04820078,135.42,135.39,0.04773713]
[1764081659844,6.6504,135.41,135.39,0.04773713]
[1764081660954,6.6525,135.37,135.34,2.98]
[1764081661141,103.4633,135.4,135.34,2.98]
[1764081661654,103.4727,135.38,135.32,25.86]
[1764081661847,103.4727,135.38,135.31,2.98]
[1764081662044,6.6535,135.35,135.34,0.05244408]
[1764081662248,0.04761697,135.36,135.27,2.98]
[1764081662447,207.0266,135.33,135.27,2.98]
[1764081662755,103.4972,135.35,135.27,2.98]
[1764081662954,103.4892,135.36,135.27,2.98]
[1764081663150,103.5102,135.33,135.27,2.98]
[1764081663355,0.04807263,135.31,135.29,0.04686204]
[1764081664147,6.70347263,135.31,135.29,0.04686204]
[1764081664362,0.04807263,135.31,135.29,0.04686204]
[1764081664550,6.70347263,135.31,135.29,0.04686204]
[1764081664858,0.04807263,135.31,135.29,3.02686204]
[1764081665257,129.3423,135.37,135.3,2.98]
[1764081665258,103.4823,135.37,135.3,2.98]
[1764081665448,103.4639,135.39,135.3,2.98]
[1764081665648,6.6515,135.39,135.32,2.98]
[1764081666055,103.452,135.41,135.32,2.98]
[1764081666056,103.4566,135.4,135.32,2.98]
[1764081666254,0.05557673,135.37,135.35,3.02741534]
[1764081666656,0.05557673,135.37,135.35,0.04741534]
[1764081667455,103.4137,135.46,135.35,3.02741534]
[1764081667650,129.2818,135.45,135.35,2.98]
[1764081667855,103.4132,135.46,135.35,2.98]
[1764081668052,103.3985,135.48,135.35,2.98]
[1764081668257,103.403,135.47,135.35,2.98]
[1764081668453,6.6489,135.44,135.4,0.05418998]
[1764081668653,103.403,135.47,135.4,0.05418998]
[1764081668654,103.4114,135.46,135.4,0.05418998]
[1764081668854,0.05027459,135.43,135.4,3.03418998]
[1764081669158,0.05027459,135.43,135.4,0.05418998]
[1764081669349,6.6499,135.42,135.4,0.05418998]
[1764081669749,0.05027459,135.43,135.4,3.03418998]
[1764081670251,0.05027459,135.43,135.4,0.05418998]
[1764081671156,0.05027459,135.43,135.4,3.03418998]
[1764081671361,103.3488,135.55,135.43,2.98]
[1764081671556,103.3418,135.55,135.44,2.98]
[1764081671863,25.86,135.56,135.46,2.98]
[1764081672166,129.1974,135.56,135.46,2.98]
[1764081672359,0.04666693,135.52,135.5,0.05653024]
[1764081673756,6.69166693,135.52,135.5,0.05653024]
[1764081673968,103.3984,135.48,135.42,2.98]
[1764081674149,6.6465,135.49,135.42,2.98]
[1764081674352,103.3835,135.5,135.42,2.98]
[1764081674556,103.3961,135.48,135.42,2.98]
[1764081674758,6.6475,135.47,135.42,2.98]
[1764081674960,0.05374314,135.46,135.43,3.03322392]
[1764081675157,0.05254278,135.46,135.43,3.0316628]
[1764081675357,138.30338286,135.56,135.45,2.98]
[1764081675358,103.3374,135.56,135.45,2.98]
[1764081675562,103.3509,135.54,135.45,2.98]
[1764081675762,103.3571,135.53,135.45,2.98]
[1764081675967,6.645,135.52,135.45,2.98]
[1764081676265,103.3571,135.53,135.45,2.98]
[1764081676466,0.05011017,135.5,135.48,0.04916809]
[1764081678060,6.69621017,135.5,135.48,0.04916809]
[1764081678260,0.05011017,135.5,135.48,0.04916809]
[1764081678862,6.69611017,135.5,135.48,0.04916809]
[1764081679561,0.05011017,135.5,135.4,3.2]
[1764081679767,103.3674,135.52,135.41,3.2]
[1764081679965,6.6465,135.49,135.43,3.2]
[1764081680264,103.3824,135.5,135.43,3.2]
[1764081680563,103.45516271,135.48,135.45,0.04911995]
[1764081680872,0.05546271,135.48,135.45,0.04911995]
[1764081681075,6.6476,135.47,135.45,0.04911995]
[1764081682669,0.05546271,135.48,135.45,0.04911995]
[1764081683263,6.6474,135.47,135.45,0.04911995]
[1764081683665,0.05546271,135.48,135.45,3.24911995]
[1764081684067,6.70236271,135.48,135.45,3.24911995]
[1764081684373,0.05546271,135.48,135.45,3.24911995]
[1764081684572,6.70256271,135.48,135.45,3.24911995]
[1764081684878,0.05546271,135.48,135.45,3.24911995]
[1764081687273,0.05546271,135.48,135.45,0.04911995]
[1764081688276,6.6475,135.47,135.45,0.04911995]
[1764081690367,0.05546271,135.48,135.45,3.24911995]
[1764081690564,103.3368,135.56,135.45,3.24911995]
[1764081690763,103.3368,135.56,135.46,6.6476]
[1764081690971,103.3511,135.54,135.47,3.2]
[1764081691374,6.6449,135.52,135.47,3.2]
[1764081691580,0.04885855,135.51,135.49,3.2]
[1764081691878,0.04995993,135.51,135.49,3.25510175]
[1764081693478,6.69535993,135.51,135.49,0.05510175]
[1764081693777,6.69535993,135.51,135.46,62.0]
[1764081693778,103.3819,135.5,135.44,25.84]
[1764081693988,103.3892,135.49,135.41,3.2]
[1764081694277,6.6479,135.46,135.41,3.2]
[1764081694674,103.3959,135.48,135.41,3.2]
[1764081694875,0.05079751,135.46,135.43,0.05420328]
[1764081695073,6.69859751,135.46,135.43,3.25420328]
[1764081695271,0.05079751,135.46,135.43,3.25420328]
[1764081696076,6.69869751,135.46,135.43,3.25420328]
[1764081696278,0.05079751,135.46,135.43,3.25420328]
[1764081698680,9.10598286,135.54,135.43,3.25420328]
[1764081698875,103.3591,135.53,135.43,3.2]
[1764081699184,103.3591,135.53,135.42,103.4381]
[1764081699185,6.6459,135.5,135.45,3.2]
[1764081699481,103.3506,135.54,135.45,3.2]
[1764081699782,103.3379,135.56,135.46,3.2]
[1764081699990,0.04768816,135.51,135.48,3.25494482]
[1764081700885,6.69308816,135.51,135.48,3.25494482]
[1764081701081,0.04768816,135.51,135.48,0.05494482]
[1764081701278,6.6459,135.5,135.48,3.25494482]
[1764081701477,6.6459,135.5,135.48,0.05494482]
[1764081704386,6.6492,135.43,135.41,62.0]
[1764081704580,103.4094,135.47,135.4,3.2]
[1764081704888,103.3805,135.5,135.4,3.2]
[1764081705391,0.05303142,135.46,135.45,3.2]
[1764081705588,6.69538796,135.47,135.45,3.2]
[1764081706087,0.04798796,135.47,135.45,3.2]
[1764081706281,0.04798796,135.47,135.44,3.25437371]
[1764081706791,0.04798796,135.47,135.44,0.05437371]
[1764081706978,6.648,135.46,135.44,0.05437371]
[1764081709583,6.69538796,135.47,135.44,0.05437371]
[1764081709978,6.69538796,135.47,135.44,3.08437371]
[1764081709979,0.04798796,135.47,135.44,3.08437371]
[1764081710593,0.04798796,135.47,135.44,9.73297371]
[1764081710779,0.04798796,135.47,135.45,3.03]
[1764081711784,0.04798796,135.47,135.44,3.08437371]
[1764081712182,0.04798796,135.47,135.44,0.05437371]
[1764081712584,6.6479,135.46,135.44,0.05437371]
[1764081712993,6.6479,135.46,135.36,3.03]
[1764081712994,103.4276,135.44,135.36,3.03]
[1764081713887,0.05432622,135.41,135.39,0.0567287]
[1764081714088,6.70452622,135.41,135.39,0.0567287]
[1764081718390,0.05432622,135.41,135.39,0.0567287]
[1764081718596,0.05432622,135.41,135.39,3.2567287]
[1764081719296,6.70462622,135.41,135.39,0.0567287]
[1764081720295,0.05432622,135.41,135.39,0.0567287]
[1764081720794,0.05432622,135.41,135.39,3.2567287]
[1764081720990,5.81511543,135.52,135.41,103.4482]
[1764081721294,6.6457,135.51,135.44,3.2]
[1764081721490,103.3505,135.54,135.44,3.2]
[1764081721695,6.6442,135.54,135.45,9.8481]
[1764081721896,0.04688546,135.51,135.49,3.2]
[1764081722100,103.3272,135.57,135.49,3.2]
[1764081722101,103.3343,135.56,135.49,3.2]
[1764081722292,0.05018352,135.54,135.49,3.25391771]
[1764081723093,109.11541543,135.61,135.49,3.25391771]
[1764081723094,109.11541543,135.61,135.5,3.2]
[1764081723293,103.3037,135.6,135.5,3.2]
[1764081723599,6.6421,135.58,135.52,3.2]
[1764081723897,6.6432,135.56,135.52,3.2]
[1764081724199,0.05031217,135.55,135.53,0.05314419]
[1764081724395,6.69401217,135.55,135.53,0.05314419]
[1764081724695,103.3804,135.5,135.44,29.04]
[1764081724893,103.3893,135.49,135.44,29.04]
[1764081725202,103.3893,135.49,135.4,3.2]
[1764081725203,103.4114,135.46,135.4,3.2]
[1764081725703,6.6494,135.43,135.42,0.04769936]
[1764081726998,0.05484791,135.44,135.42,0.04769936]
[1764081729805,0.05484791,135.44,135.42,3.24769936]
[1764081730285,0.05484791,135.44,135.42,0.04769936]
[1764081733399,6.70374791,135.44,135.42,0.04769936]
[1764081734087,6.6503,135.41,135.35,3.2]
[1764081734496,103.4422,135.42,135.35,3.2]
[1764081734697,103.4393,135.43,135.35,3.2]
[1764081734886,103.421,135.45,135.35,3.2]
[1764081735087,0.04838309,135.41,135.39,0.05578277]
[1764081736397,6.69878309,135.41,135.39,0.05578277]
[1764081736802,109.21341543,135.48,135.39,3.25578277]
[1764081736994,5.81511543,135.5,135.41,3.2]
[1764081737194,109.19851543,135.5,135.41,3.2]
[1764081737406,6.6474,135.47,135.41,3.2]
[1764081737907,0.05397552,135.45,135.44,3.08]
[1764081738097,0.04761616,135.46,135.44,3.08]
[1764081738297,0.04996324,135.46,135.44,3.13067585]
[1764081739099,0.04996324,135.46,135.44,0.05067585]
[1764081739494,6.69786324,135.46,135.44,0.05067585]
[1764081741193,0.04996324,135.46,135.44,3.13067585]
[1764081741993,0.04996324,135.46,135.44,0.05067585]
[1764081742403,0.04996324,135.46,135.44,3.13067585]
[1764081742901,0.04996324,135.46,135.44,0.05067585]
[1764081743106,0.04996324,135.46,135.44,3.13067585]
[1764081743905,6.69776324,135.46,135.44,0.05067585]
[1764081745499,0.04996324,135.46,135.44,0.05067585]
[1764081745798,0.04996324,135.46,135.44,3.13067585]
[1764081748201,0.04996324,135.46,135.45,3.08]
[1764081748403,0.04996324,135.46,135.44,0.05067585]
[1764081749910,6.69786324,135.46,135.44,0.05067585]
[1764081750614,0.04996324,135.46,135.44,0.05067585]
[1764081751102,6.69796324,135.46,135.44,0.05067585]
[1764081752712,0.04996324,135.46,135.44,0.05067585]
[1764081754313,6.69786324,135.46,135.44,0.05067585]
[1764081754504,103.4334,135.43,135.34,18.00019061]
[1764081754704,6.6501,135.42,135.34,3.08]
[1764081755009,109.23031543,135.46,135.34,3.08]
[1764081755209,103.4201,135.45,135.34,3.08]
[1764081755417,6.6509,135.4,135.36,3.08]
[1764081755616,6.6509,135.4,135.38,0.05456934]
[1764081756013,0.05064893,135.41,135.38,0.05456934]
[1764081756219,0.05064893,135.41,135.38,3.13456934]
[1764081756718,0.05064893,135.41,135.39,3.08]
[1764081757216,0.05064893,135.41,135.38,6.70616934]
[1764081757217,0.05064893,135.41,135.38,0.05456934]
[1764081757410,0.05064893,135.41,135.38,3.13456934]
[1764081758618,6.6509,135.4,135.38,0.05456934]
[1764081758809,6.6509,135.4,135.3,3.08]
[1764081758810,103.4728,135.38,135.3,3.08]
[1764081759215,6.6538,135.34,135.3,3.08]
[1764081759719,0.05251482,135.33,135.31,0.05406549]
[1764081759920,0.05357506,135.33,135.31,0.05406549]
[1764081760116,0.05357506,135.33,135.31,3.13406549]
[1764081760315,0.05357506,135.33,135.31,0.05406549]
[1764081761219,6.70787506,135.33,135.31,0.05406549]
[1764081761412,0.05357506,135.33,135.31,0.05406549]
[1764081761719,0.05357506,135.33,135.31,3.13406549]
[1764081762620,6.70787506,135.33,135.31,0.05406549]
[1764081763312,0.05357506,135.33,135.31,0.05406549]
[1764081763512,0.05357506,135.33,135.31,3.13406549]
[1764081764419,0.05357506,135.33,135.31,0.05406549]
[1764081766723,6.70787506,135.33,135.31,0.05406549]
[1764081768620,6.70787506,135.33,135.25,25.84]
[1764081768621,103.5175,135.32,135.25,25.84]
[1764081768818,103.5264,135.31,135.25,25.84]
[1764081769221,103.5368,135.3,135.23,3.01]
[1764081769726,0.04744845,135.28,135.25,3.06272638]
[1764081770022,0.05178449,135.28,135.25,3.06611576]
[1764081771022,0.05178449,135.28,135.27,3.01]
[1764081771223,0.05178449,135.28,135.25,3.06611576]
[1764081771621,0.05178449,135.28,135.26,65.01]
[1764081771822,0.05178449,135.28,135.27,3.01]
[1764081772212,6.70858449,135.28,135.25,3.06611576]
[1764081772618,0.05178449,135.28,135.25,0.05611576]
[1764081772816,6.6572,135.27,135.25,0.05611576]
[1764081774519,103.564,135.26,135.18,3.01]
[1764081774726,103.564,135.26,135.19,65.01]
[1764081775027,6.6592,135.23,135.2,3.01]
[1764081775228,103.5799,135.24,135.19,62.0]
[1764081775424,0.0540209,135.23,135.2,0.05328291]
[1764081775826,6.6597,135.22,135.2,0.05328291]
[1764081776126,0.0540209,135.23,135.2,3.06328291]
[1764081777719,103.6434209,135.23,135.2,0.05328291]
[1764081777920,0.0540209,135.23,135.2,0.05328291]
[1764081778129,0.0540209,135.23,135.2,3.18328291]
[1764081778317,0.0540209,135.23,135.2,0.05328291]
[1764081778725,6.6597,135.22,135.2,0.05328291]
[1764081779726,0.0540209,135.23,135.2,0.05328291]
[1764081780124,103.6449209,135.23,135.2,0.05328291]
[1764081780322,103.6414,135.16,135.08,3.13]
[1764081780532,103.6414,135.16,135.03,97.74042556]
[1764081780533,103.6491,135.15,135.04,3.13]
[1764081780736,103.6566,135.14,135.06,3.13]
[1764081780943,103.6788,135.11,135.02,3.13]
[1764081781233,103.7183,135.06,134.95,3.13]
[1764081781439,103.7094,135.07,135.05,0.05243]
[1764081781733,103.7104,135.07,134.96,3.13]
[1764081781936,6.6674,135.07,134.96,3.13]
[1764081782237,110.377,135.07,134.97,3.13]
[1764081782442,103.7248,135.05,134.97,1.28860253]
[1764081782629,0.05041937,135.02,135.0,0.04823465]
[1764081782943,1.28893663,134.96,134.93,3.13]
[1764081783123,22.38,135.08,134.96,3.13]
[1764081783324,103.7118,135.07,134.97,65.13]
[1764081783526,22.38,135.08,134.98,3.13]
[1764081783727,9.14042556,135.06,134.97,62.0]
[1764081783931,103.7733,134.99,134.9,3.13]
[1764081784128,0.05280397,134.96,134.9,3.13]
[1764081784331,0.05280397,134.96,134.93,0.04925734]
[1764081785341,112.94432556,134.95,134.84,2.50814541]
[1764081785540,103.8121,134.94,134.84,2.50814541]
[1764081785835,110.5246,134.89,134.84,2.50814541]
[1764081786035,103.879,134.85,134.84,4.541e-05]
[1764081786235,110.5568,134.85,134.84,4.541e-05]
[1764081786440,103.8952,134.83,134.73,3.13]
[1764081786737,110.5856,134.82,134.73,3.13]
[1764081786944,129.799,134.85,134.75,3.13]
[1764081787436,103.8769,134.86,134.76,3.18173649]
[1764081787437,0.04725423,134.79,134.76,3.18173649]
[1764081787936,0.05373269,134.79,134.76,3.18276807]
[1764081788135,103.8365,134.91,134.77,3.13]
[1764081788338,103.8344,134.91,134.79,3.13]
[1764081788635,103.8541,134.89,134.79,3.13]
[1764081788834,110.5302,134.89,134.79,3.13]
[1764081789028,9.14042556,134.93,134.79,3.13]
[1764081789230,9.14042556,134.93,134.77,25.96]
[1764081789231,0.05369094,134.87,134.75,3.13]
[1764081789436,103.813,134.94,134.79,3.13]
[1764081789641,112.95872556,134.93,134.79,3.13]
[1764081789938,103.8759,134.86,134.75,3.13]
[1764081790240,103.8812,134.85,134.76,3.13]
[1764081790540,0.05550782,134.82,134.79,0.05525131]
[1764081790740,103.95990782,134.82,134.79,0.05525131]
[1764081791035,110.63930782,134.82,134.79,0.05525131]
[1764081791240,103.952,134.76,134.67,3.13]
[1764081791432,103.956,134.74,134.67,3.13]
[1764081791633,103.9865,134.7,134.66,1.29125619]
[1764081791832,103.9968,134.69,134.66,1.29125619]
[1764081792046,103.9814,134.71,134.61,3.13]
[1764081792344,0.04949955,134.67,134.65,3.1801006]
[1764081792634,103.9558,134.74,134.65,3.1801006]
[1764081792838,0.04750863,134.67,134.65,3.13]
[1764081793034,26.0,134.77,134.65,3.13]
[1764081793436,129.9327,134.77,134.65,3.13]
[1764081793739,129.9327,134.77,134.62,1.29180742]
[1764081793740,103.9866,134.7,134.62,1.29180742]
[1764081793943,104.0156,134.66,134.57,3.13]
[1764081794139,6.6868,134.66,134.65,0.05237002]
[1764081794338,104.06366751,134.67,134.61,0.05245065]
[1764081794644,0.05181141,134.65,134.54,1.29257512]
[1764081794834,0.05181141,134.65,134.53,3.13]
[1764081795036,0.05181141,134.65,134.56,3.13]
[1764081795237,103.9408,134.76,134.54,1.29259913]
[1764081795437,103.9785,134.71,134.59,3.13]
[1764081795645,6.6847,134.7,134.59,3.13]
[1764081795940,130.0985,134.71,134.59,3.13]
[1764081796141,26.12,134.71,134.61,3.13]
[1764081796339,26.14,134.76,134.64,3.17709117]
[1764081796644,26.14,134.76,134.66,3.13]
[1764081796848,26.14,134.76,134.67,65.13]
[1764081797139,103.9256,134.78,134.67,65.13]
[1764081797340,26.14,134.81,134.67,65.13]
[1764081797543,207.9244,134.73,134.63,2.89]
[1764081797842,103.9947,134.69,134.59,2.89]
[1764081798145,26.16,134.74,134.61,2.89]
[1764081798744,104.04630083,134.69,134.66,0.04802771]
[1764081798946,104.0149,134.66,134.58,2.53574572]
[1764081799246,113.15352556,134.67,134.58,2.53574572]
[1764081799450,119.83972556,134.67,134.58,2.53574572]
[1764081799640,103.9789,134.71,134.58,5.42574572]
[1764081799641,9.14042556,134.7,134.58,5.42574572]
[1764081799840,113.12522556,134.7,134.59,2.89]
[1764081800040,0.05664758,134.66,134.63,0.04777458]
[1764081800745,104.0405,134.63,134.58,2.53574572]
[1764081801042,6.6894,134.61,134.58,2.53574572]
[1764081801247,104.049,134.62,134.58,2.53574572]
[1764081801444,6.689,134.62,134.58,2.53574572]
[1764081801650,104.0256,134.65,134.58,2.53574572]
[1764081801847,0.04755667,134.61,134.59,0.05505942]
[1764081802356,104.0256,134.65,134.59,0.05505942]
[1764081802357,103.9246,134.78,134.64,2.89]
[1764081802549,103.9149,134.79,134.64,2.89]
[1764081802859,1.29178344,134.78,134.66,2.89]
[1764081803158,1.29178344,134.78,134.65,104.0173]
[1764081803159,9.14042556,134.78,134.67,2.89]
[1764081803348,0.04679861,134.74,134.71,0.05515618]
[1764081804056,0.04679861,134.74,134.71,2.94515618]
[1764081804758,0.04679861,134.74,134.71,0.05515618]
[1764081805255,103.99949861,134.74,134.71,0.05515618]
[1764081805454,0.04679861,134.74,134.63,2.89]
[1764081805753,103.9497,134.75,134.63,2.89]
[1764081805960,9.14042556,134.76,134.63,2.89]
[1764081806155,103.9251,134.78,134.64,2.89]
[1764081806346,0.05288964,134.72,134.7,0.05565269]
[1764081806545,0.04911692,134.72,134.7,0.05565269]
[1764081806956,0.04911692,134.72,134.7,2.94565269]
[1764081807652,26.58,134.8,134.7,2.94565269]
[1764081807853,26.58,134.8,134.7,2.89]
[1764081808054,26.58,134.8,134.66,2.89]
[1764081808055,110.6027,134.78,134.66,2.89]
[1764081808254,103.9608,134.73,134.66,62.0]
[1764081808460,103.9683,134.72,134.62,2.89]
[1764081808760,0.05152065,134.71,134.68,0.05689183]
[1764081810554,0.05152065,134.71,134.68,2.94689183]
[1764081810954,103.8696,134.85,134.72,2.89]
[1764081811154,103.8696,134.85,134.73,2.89]
[1764081811362,103.8768,134.84,134.74,2.89]
[1764081811556,112.99982556,134.87,134.74,9.5722]
[1764081811859,103.8551,134.87,134.75,2.89]
[1764081812057,0.04685923,134.82,134.79,0.05537818]
[1764081812252,0.05562708,134.82,134.79,2.93905722]
[1764081812761,0.05562708,134.82,134.79,0.04905722]
[1764081814759,0.05562708,134.82,134.79,2.93905722]
[1764081814965,103.8398,134.89,134.79,2.93905722]
[1764081815168,103.8398,134.89,134.79,2.89]
[1764081815560,103.8218,134.91,134.79,2.89]
[1764081815969,103.8158,134.92,134.8,2.89]
[1764081816171,0.05072795,134.87,134.85,0.05332353]
[1764081816370,0.05515544,134.87,134.85,0.05332353]
[1764081817071,6.73165544,134.87,134.85,0.05332353]
[1764081817272,103.8681,134.85,134.74,2.89]
[1764081817463,103.8838,134.83,134.74,2.89]
[1764081818158,6.6775,134.85,134.77,0.05104268]
[1764081818362,103.8704,134.85,134.77,2.89]
[1764081818568,0.04717137,134.82,134.8,0.04725554]
[1764081819261,0.04717137,134.82,134.8,2.93725554]
[1764081819574,0.04717137,134.82,134.8,0.04725554]
[1764081820876,0.04717137,134.82,134.8,2.93725554]
[1764081821060,0.04717137,134.82,134.8,0.04725554]
[1764081823365,103.93817137,134.82,134.75,2.89]
[1764081823776,103.93817137,134.82,134.72,2.89]
[1764081823965,103.8757,134.84,134.72,2.89]
[1764081824371,0.05541521,134.79,134.77,0.04830706]
[1764081824561,0.05274695,134.79,134.77,0.04830706]
[1764081825266,103.8567,134.87,134.77,2.93830706]
[1764081825472,6.6779,134.84,134.77,2.89]
[1764081825669,103.8386,134.89,134.77,2.89]
[1764081825870,6.6764,134.87,134.77,2.89]
[1764081826072,103.8323,134.9,134.78,2.89]
[1764081826378,0.0508465,134.85,134.83,0.05443773]
[1764081826578,0.04811124,134.85,134.83,0.05443773]
[1764081827473,6.72541124,134.85,134.83,0.05443773]
[1764081827772,0.04811124,134.85,134.83,0.05443773]
[1764081828072,6.72551124,134.85,134.83,0.05443773]
[1764081828270,0.04811124,134.85,134.83,0.05443773]
[1764081829285,5.61821148,134.84,134.83,0.05443773]
[1764081830675,0.04811124,134.85,134.83,3.00443773]
[1764081831175,0.04811124,134.85,134.83,0.05443773]
[1764081832382,6.72551124,134.85,134.83,0.05443773]
[1764081832779,0.04811124,134.85,134.83,0.05443773]
[1764081832972,6.72541124,134.85,134.83,0.05443773]